bitfinex-derivatives/quotes_BTCF0:USTF0_20250626
["timestamp","ask_amount","ask_price","bid_price","bid_amount"]
[1750897841938,0.52546095,107500.0,107490.0,0.95809189]
[1750897842438,0.49486095,107500.0,107490.0,0.98909189]
[1750897843734,0.49486095,107500.0,107490.0,0.5008]
[1750897843735,0.85894644,107500.0,107490.0,0.5008]
[1750897844039,0.1859797,107480.0,107470.0,0.39725494]
[1750897844225,0.1859797,107480.0,107470.0,0.46055494]
[1750897844226,0.78789555,107480.0,107470.0,0.46055494]
[1750897844425,0.42709555,107480.0,107470.0,0.49225494]
[1750897845335,0.42709555,107480.0,107470.0,0.49625494]
[1750897845538,0.42709555,107480.0,107470.0,0.31025994]
[1750897845830,0.66842504,107480.0,107470.0,0.27855994]
[1750897846135,0.69862504,107480.0,107470.0,0.06823045]
[1750897846340,0.69862504,107480.0,107470.0,0.03793045]
[1750897846733,0.69862504,107480.0,107470.0,0.03693045]
[1750897847537,0.69862504,107480.0,107470.0,0.03493045]
[1750897848538,0.48829555,107480.0,107470.0,0.03493045]
[1750897849140,0.69862504,107480.0,107470.0,0.03493045]
[1750897852633,0.27796606,107480.0,107470.0,0.00193045]
[1750897852838,0.69862504,107480.0,107470.0,0.00193045]
[1750897857340,1.26798504,107480.0,107470.0,0.00193045]
[1750897857543,1.26798504,107480.0,107470.0,0.03453045]
[1750897857742,1.26798504,107480.0,107470.0,0.06733045]
[1750897857949,1.26798504,107480.0,107470.0,0.10033045]
[1750897858148,1.26798504,107480.0,107470.0,0.28632745]
[1750897858650,0.45809555,107480.0,107470.0,0.49665694]
[1750897858849,0.42709555,107480.0,107470.0,0.85745694]
[1750897863151,0.78789555,107480.0,107470.0,0.31065994]
[1750897863360,0.78789555,107480.0,107470.0,0.49665694]
[1750897866958,0.99822504,107480.0,107470.0,0.49665694]
[1750897867858,0.99822504,107480.0,107470.0,0.31065994]
[1750897868149,1.02852504,107480.0,107470.0,0.06733045]
[1750897868356,1.09232504,107480.0,107470.0,0.06733045]
[1750897869246,1.09232504,107480.0,107470.0,0.25332745]
[1750897869446,1.09232504,107480.0,107470.0,0.06733045]
[1750897869764,0.67166606,107480.0,107470.0,0.00193045]
[1750897870055,1.09232504,107480.0,107470.0,0.00193045]
[1750897882383,1.44232504,107480.0,107470.0,0.00193045]
[1750897883372,1.57504504,107480.0,107470.0,0.00193045]
[1750897886379,1.97146253,107480.0,107470.0,5e-08]
[1750897886678,2.22146253,107480.0,107470.0,5e-08]
[1750897887065,2.29592005,107480.0,107470.0,5e-08]
[1750897887268,1.97146253,107480.0,107470.0,5e-08]
[1750897888371,1.90184514,107480.0,107470.0,5e-08]
[1750897890079,0.1860316,107450.0,107440.0,0.09653071]
[1750897890278,1.0667835,107450.0,107440.0,0.28257971]
[1750897891070,0.78609796,107450.0,107440.0,0.28257971]
[1750897891473,0.21681796,107450.0,107440.0,0.28257971]
[1750897891678,0.81845907,107460.0,107450.0,0.1860316]
[1750897891881,0.3262284,107460.0,107450.0,0.89011714]
[1750897892684,0.3262284,107460.0,107450.0,0.6094316]
[1750897897779,0.3262284,107460.0,107450.0,0.6396316]
[1750897909786,0.60691394,107460.0,107450.0,0.6396316]
[1750897909984,0.96771394,107460.0,107450.0,0.2788316]
[1750897910183,0.96771394,107460.0,107450.0,0.0626]
[1750897910385,1.13914324,107460.0,107450.0,0.0626]
[1750897910579,1.16924324,107460.0,107450.0,0.0626]
[1750897912297,1.05900228,107460.0,107450.0,0.0626]
[1750897913697,0.1860317,107450.0,107440.0,0.70258591]
[1750897913996,0.49720911,107450.0,107440.0,0.63986581]
[1750897914494,0.52760911,107450.0,107440.0,0.63986581]
[1750897914893,0.52760911,107450.0,107440.0,0.64186581]
[1750897915087,0.24693523,107450.0,107440.0,0.64186581]
[1750897915396,0.32161205,107450.0,107440.0,0.64186581]
[1750897915894,0.29121205,107450.0,107440.0,0.64186581]
[1750897916594,0.57188593,107450.0,107440.0,0.06573071]
[1750897916802,0.60378593,107450.0,107440.0,0.06573071]
[1750897917496,0.63618593,107450.0,107440.0,0.06573071]
[1750897918703,1.56614593,107450.0,107440.0,0.00493071]
[1750897918997,1.59734593,107450.0,107440.0,0.00493071]
[1750897920500,1.61170491,107450.0,107440.0,0.00493071]
[1750897922995,1.59734593,107450.0,107440.0,0.00493071]
[1750897923701,1.92187399,107450.0,107440.0,0.00493071]
[1750897924292,0.1860663,107430.0,107420.0,0.0632]
[1750897924494,1.42720371,107430.0,107420.0,0.0314]
[1750897924698,0.1860837,107420.0,107410.0,0.57912747]
[1750897924904,0.1860837,107420.0,107410.0,0.64152747]
[1750897926503,0.3256389,107430.0,107420.0,0.1860836]
[1750897926802,0.3256389,107430.0,107420.0,0.53025748]
[1750897927004,0.3256389,107430.0,107420.0,0.53525748]
[1750897927202,0.3256389,107430.0,107420.0,0.54977987]
[1750897927707,0.2791187,107430.0,107420.0,1.04325987]
[1750897927908,0.2791187,107430.0,107420.0,1.26233587]
[1750897929404,0.1860793,107430.0,107420.0,1.26233587]
[1750897929603,0.1860793,107430.0,107420.0,1.07615987]
[1750897929805,0.1860793,107430.0,107420.0,1.26633587]
[1750897930702,0.1860793,107430.0,107420.0,1.08015987]
[1750897933306,0.29570842,107440.0,107430.0,0.1860663]
[1750897933503,0.29570842,107440.0,107430.0,0.6099663]
[1750897933701,0.29570842,107440.0,107430.0,1.2118863]
[1750897933898,0.20268222,107440.0,107430.0,1.2118863]
[1750897934198,0.20268222,107440.0,107430.0,1.49256018]
[1750897934704,0.20268222,107440.0,107430.0,1.49556018]
[1750897935306,0.20268222,107440.0,107430.0,1.49856018]
[1750897938408,0.20268222,107440.0,107430.0,1.2178863]
[1750897939201,0.4833561,107440.0,107430.0,0.6483663]
[1750897939402,0.5151561,107440.0,107430.0,1.3505263]
[1750897940510,0.20268222,107440.0,107430.0,1.3505263]
[1750897941312,0.20268222,107440.0,107430.0,0.7810463]
[1750897942413,0.20268222,107440.0,107430.0,1.06172018]
[1750897945905,0.23322858,107440.0,107430.0,1.06172018]
[1750897959513,0.06319087,107460.0,107450.0,0.1860317]
[1750897959716,0.23328676,107460.0,107450.0,1.52950558]
[1750897959921,0.04727236,107460.0,107450.0,1.59530558]
[1750897960610,0.04727236,107460.0,107450.0,1.61042242]
[1750897960611,0.01668577,107460.0,107450.0,1.61042242]
[1750897960815,0.01768577,107460.0,107450.0,1.61042242]
[1750897961113,0.20370017,107460.0,107450.0,1.61042242]
[1750897961819,0.20370017,107460.0,107450.0,1.61142242]
[1750897962821,0.20270017,107460.0,107450.0,1.64202242]
[1750897963022,0.20270017,107460.0,107450.0,1.64302242]
[1750897963520,0.20270017,107460.0,107450.0,1.64298242]
[1750897978034,0.20270017,107460.0,107450.0,1.64266242]
[1750897978831,0.26700017,107460.0,107450.0,1.64266242]
[1750897979933,0.26700017,107460.0,107450.0,1.60996242]
[1750897980835,0.26700017,107460.0,107450.0,0.62764854]
[1750897981035,0.26800017,107460.0,107450.0,1.29768854]
[1750897981234,0.29970017,107460.0,107450.0,1.29768854]
[1750897981432,0.29970017,107460.0,107450.0,1.29668854]
[1750897982833,0.29970017,107460.0,107450.0,1.57736242]
[1750897983032,0.29970017,107460.0,107450.0,0.87572242]
[1750897983228,0.29970017,107460.0,107450.0,1.57732242]
[1750897983432,0.29970017,107460.0,107450.0,1.29664854]
[1750897986140,0.33010467,107460.0,107450.0,1.29664854]
[1750897987536,0.61077855,107460.0,107450.0,0.01511684]
[1750897987736,0.97157855,107460.0,107450.0,0.01511684]
[1750897988436,0.1860317,107450.0,107440.0,0.4116613]
[1750897988637,0.3119362,107450.0,107440.0,0.4116613]
[1750897989238,0.38464606,107450.0,107440.0,0.4116613]
[1750897989439,0.32074606,107450.0,107440.0,0.72233518]
[1750897989642,0.28914606,107450.0,107440.0,0.78703518]
[1750897989835,0.28914606,107450.0,107440.0,0.78803518]
[1750897990441,0.2164362,107450.0,107440.0,1.14883518]
[1750897996147,0.1860317,107450.0,107440.0,1.14883518]
[1750898005552,0.79553487,107460.0,107450.0,0.1860317]
[1750898005750,0.82585175,107460.0,107450.0,0.2496317]
[1750898006353,0.79495175,107460.0,107450.0,0.2496317]
[1750898006555,0.79495175,107460.0,107450.0,0.56140558]
[1750898006854,0.79595175,107460.0,107450.0,0.56140558]
[1750898007652,0.79595175,107460.0,107450.0,0.53030558]
[1750898008049,0.82695175,107460.0,107450.0,0.2496317]
[1750898010452,0.81026598,107460.0,107450.0,0.2496317]
[1750898011447,0.81026598,107460.0,107450.0,0.2813317]
[1750898012659,0.77926598,107460.0,107450.0,0.2813317]
[1750898015459,0.41846598,107460.0,107450.0,0.2813317]
[1750898015652,0.41846598,107460.0,107450.0,0.6421317]
[1750898019064,0.32545148,107460.0,107450.0,0.92280558]
[1750898019262,0.26385148,107460.0,107450.0,0.92280558]
[1750898020469,0.26385148,107460.0,107450.0,0.85257171]
[1750898020863,0.47429149,107460.0,107450.0,0.85257171]
[1750898025869,0.47429149,107460.0,107450.0,0.6421317]
[1750898026073,0.53869149,107460.0,107450.0,0.82087171]
[1750898026264,0.57149149,107460.0,107450.0,0.75727171]
[1750898026868,1.1427315,107460.0,107450.0,0.1860317]
[1750898027865,0.1860316,107450.0,107440.0,0.68481621]
[1750898028066,0.52248849,107450.0,107440.0,0.52229621]
[1750898029473,0.52248849,107450.0,107440.0,0.52429621]
[1750898030373,0.31204848,107450.0,107440.0,0.3138562]
[1750898032177,0.38772045,107450.0,107440.0,0.3138562]
[1750898032376,0.95660045,107450.0,107440.0,0.3138562]
[1750898032977,0.95660045,107450.0,107440.0,0.2810562]
[1750898034681,0.95660045,107450.0,107440.0,0.2345457]
[1750898040785,0.95660045,107450.0,107440.0,0.3000457]
[1750898042390,0.86090045,107450.0,107440.0,0.58072708]
[1750898042582,0.86090045,107450.0,107440.0,0.61122708]
[1750898042982,0.86086045,107450.0,107440.0,0.61122708]
[1750898046681,0.29202045,107450.0,107440.0,0.61122708]
[1750898046881,0.86082045,107450.0,107440.0,0.61122708]
[1750898049388,0.87748772,107450.0,107440.0,0.3305457]
[1750898049583,1.1581691,107450.0,107440.0,0.3000457]
[1750898049784,0.97478772,107450.0,107440.0,0.2535372]
[1750898050386,1.18529893,107450.0,107440.0,0.2535372]
[1750898050591,1.18529893,107450.0,107440.0,0.43104841]
[1750898051592,1.15498205,107450.0,107440.0,0.43104841]
[1750898057394,1.15498205,107450.0,107440.0,0.24501121]
[1750898058589,1.15498205,107450.0,107440.0,0.43106021]
[1750898059093,1.15498205,107450.0,107440.0,0.24501121]
[1750898059793,1.15498205,107450.0,107440.0,0.43106021]
[1750898060295,1.15498205,107450.0,107440.0,0.39856021]
[1750898061095,1.15498205,107450.0,107440.0,0.188049]
[1750898061292,1.15498205,107450.0,107440.0,0.39856021]
[1750898064997,1.15498205,107450.0,107440.0,0.002]
[1750898065400,1.51578205,107450.0,107440.0,0.002]
[1750898066604,1.72629326,107450.0,107440.0,0.002]
[1750898068200,1.85869326,107450.0,107440.0,0.002]
[1750898068604,1.64818205,107450.0,107440.0,0.002]
[1750898068805,1.85869326,107450.0,107440.0,0.002]
[1750898069105,1.64818205,107450.0,107440.0,0.002]
[1750898069311,0.94698205,107450.0,107440.0,0.002]
[1750898069504,1.51570205,107450.0,107440.0,0.002]
[1750898071605,1.5328392,107450.0,107440.0,0.002]
[1750898073104,1.74335041,107450.0,107440.0,0.002]
[1750898073703,1.5328392,107450.0,107440.0,0.002]
[1750898075707,0.73647084,107450.0,107440.0,0.002]
[1750898076005,1.64810205,107450.0,107440.0,0.002]
[1750898077909,1.66546218,107450.0,107440.0,0.002]
[1750898079511,1.87597339,107450.0,107440.0,0.002]
[1750898080514,1.66546218,107450.0,107440.0,0.002]
[1750898080907,1.87597339,107450.0,107440.0,0.002]
[1750898084114,1.15749326,107450.0,107440.0,0.002]
[1750898084312,1.64810205,107450.0,107440.0,0.002]
[1750898085518,1.66568258,107450.0,107440.0,0.002]
[1750898087215,1.66568258,107450.0,107440.0,0.001]
[1750898087420,1.66768258,107450.0,107440.0,0.001]
[1750898087615,1.87819379,107450.0,107440.0,0.001]
[1750898088026,0.1860489,107440.0,107430.0,0.85287711]
[1750898088314,0.60707132,107440.0,107430.0,0.4563]
[1750898088519,0.63747132,107440.0,107430.0,0.4563]
[1750898089413,0.63847132,107440.0,107430.0,0.4563]
[1750898089613,0.63847132,107440.0,107430.0,0.0955]
[1750898089820,0.99927132,107440.0,107430.0,0.0955]
[1750898090824,0.99927132,107440.0,107430.0,0.033]
[1750898091022,1.06247132,107440.0,107430.0,0.033]
[1750898093928,1.06247132,107440.0,107430.0,0.0633]
[1750898094529,1.06247132,107440.0,107430.0,0.033]
[1750898094725,0.1860663,107430.0,107420.0,0.0945]
[1750898094926,1.32605751,107430.0,107420.0,0.0945]
[1750898095643,1.53656872,107430.0,107420.0,0.0945]
[1750898095843,1.35615751,107430.0,107420.0,0.0955]
[1750898096050,1.35615751,107430.0,107420.0,0.0965]
[1750898098546,1.1456463,107430.0,107420.0,0.0965]
[1750898098747,1.35615751,107430.0,107420.0,0.0965]
[1750898098946,1.35615751,107430.0,107420.0,0.0945]
[1750898099247,1.35715751,107430.0,107420.0,0.0945]
[1750898102247,1.35715751,107430.0,107420.0,0.0331]
[1750898102446,1.32709751,107430.0,107420.0,0.0331]
[1750898102647,1.32709751,107430.0,107420.0,0.0951]
[1750898103350,1.32709751,107430.0,107420.0,0.0648]
[1750898103543,1.63300872,107430.0,107420.0,0.0648]
[1750898103749,0.1860836,107420.0,107410.0,0.03153097]
[1750898103950,0.60710602,107420.0,107410.0,0.06393097]
[1750898104149,0.63860602,107420.0,107410.0,0.09563097]
[1750898105047,0.63860602,107420.0,107410.0,0.09663097]
[1750898105454,0.1860836,107420.0,107410.0,0.30814218]
[1750898105753,0.39659481,107420.0,107410.0,0.30814218]
[1750898110961,0.39659481,107420.0,107410.0,0.09763097]
[1750898111162,0.60710602,107420.0,107410.0,0.30814218]
[1750898111458,0.96790602,107420.0,107410.0,0.30814218]
[1750898111658,0.96790602,107420.0,107410.0,0.09763097]
[1750898113962,1.00070602,107420.0,107410.0,0.09763097]
[1750898115961,1.03190602,107420.0,107410.0,0.09763097]
[1750898116360,1.04873614,107420.0,107410.0,0.09763097]
[1750898117266,1.04873614,107420.0,107410.0,0.06703097]
[1750898117459,1.01753614,107420.0,107410.0,0.06703097]
[1750898117659,1.01753614,107420.0,107410.0,0.09893097]
[1750898118362,1.00070602,107420.0,107410.0,0.09893097]
[1750898120270,1.01765597,107420.0,107410.0,0.09893097]
[1750898121068,1.00070602,107420.0,107410.0,0.09893097]
[1750898124176,1.01802972,107420.0,107410.0,0.09893097]
[1750898125376,1.00070602,107420.0,107410.0,0.09893097]
[1750898126679,1.00070602,107420.0,107410.0,0.06703097]
[1750898126866,1.06180602,107420.0,107410.0,0.06703097]
[1750898127275,0.1861182,107400.0,107390.0,0.01155993]
[1750898127467,1.17590062,107400.0,107390.0,0.10605993]
[1750898128778,1.17590062,107400.0,107390.0,0.11105993]
[1750898129478,1.17590062,107400.0,107390.0,0.11405993]
[1750898130178,0.96538941,107400.0,107390.0,0.11405993]
[1750898130378,1.17590062,107400.0,107390.0,0.11405993]
[1750898130879,1.20610062,107400.0,107390.0,0.11405993]
[1750898134385,1.20610062,107400.0,107390.0,0.11105993]
[1750898134685,1.20610062,107400.0,107390.0,0.11205993]
[1750898134883,1.20610062,107400.0,107390.0,0.10805993]
[1750898135486,0.7850782,107400.0,107390.0,0.10805993]
[1750898135687,0.96538941,107400.0,107390.0,0.50470674]
[1750898141486,0.39662941,107400.0,107390.0,0.50470674]
[1750898142783,0.1861182,107400.0,107390.0,0.86550674]
[1750898145088,0.1861182,107400.0,107390.0,1.43434674]
[1750898146288,0.29634501,107410.0,107400.0,0.1861182]
[1750898146489,0.29634501,107410.0,107400.0,1.06504062]
[1750898146688,0.01717831,107410.0,107400.0,1.19744062]
[1750898146990,0.20327921,107410.0,107400.0,1.19744062]
[1750898147195,0.01717831,107410.0,107400.0,1.19744062]
[1750898147485,0.00100001,107410.0,107400.0,1.44744062]
[1750898147686,0.1860865,107420.0,107410.0,0.1861009]
[1750898147881,0.1860865,107420.0,107410.0,1.39259211]
[1750898148487,0.3256403,107430.0,107420.0,0.1860836]
[1750898148681,0.35562006,107430.0,107420.0,0.85509481]
[1750898148883,0.35562006,107430.0,107420.0,1.06560602]
[1750898149086,0.35562006,107430.0,107420.0,1.19800602]
[1750898149690,0.35962006,107430.0,107420.0,1.19800602]
[1750898150388,0.35962006,107430.0,107420.0,1.05772077]
[1750898150589,0.36462006,107430.0,107420.0,1.05772077]
[1750898151383,0.27157846,107430.0,107420.0,1.05772077]
[1750898151589,0.1950807,107430.0,107420.0,1.05772077]
[1750898151791,0.009,107430.0,107420.0,1.05772077]
[1750898152390,0.1950663,107430.0,107420.0,1.05772077]
[1750898153090,0.009,107430.0,107420.0,1.05772077]
[1750898153296,0.009,107430.0,107420.0,1.24389677]
[1750898153681,0.1950663,107430.0,107420.0,1.24389677]
[1750898154095,0.1950663,107430.0,107420.0,1.53519677]
[1750898154491,0.009,107430.0,107420.0,1.53519677]
[1750898154690,0.005,107430.0,107420.0,1.53519677]
[1750898154992,0.001,107430.0,107420.0,1.53519677]
[1750898155183,0.002,107430.0,107420.0,1.53519677]
[1750898157492,0.002,107430.0,107420.0,1.55068186]
[1750898157895,0.20370057,107450.0,107420.0,1.36459826]
[1750898158198,0.20370057,107450.0,107440.0,0.82758607]
[1750898158396,0.20370057,107450.0,107440.0,0.95994607]
[1750898158590,0.20370057,107450.0,107440.0,1.05284607]
[1750898158991,0.20770057,107450.0,107440.0,1.05284607]
[1750898159794,0.21170057,107450.0,107440.0,1.06865629]
[1750898160197,0.24400057,107450.0,107440.0,1.05284607]
[1750898160597,0.27540057,107450.0,107440.0,1.3412289]
[1750898160795,0.27140057,107450.0,107440.0,0.4537]
[1750898160999,0.97879956,107450.0,107440.0,0.01539173]
[1750898161296,0.97879747,107450.0,107440.0,0.01539173]
[1750898162296,1.0535705,107450.0,107440.0,0.01539173]
[1750898167001,1.06938072,107450.0,107440.0,0.01539173]
[1750898168801,0.70858072,107450.0,107440.0,0.01539173]
[1750898169001,1.06938072,107450.0,107440.0,0.01539173]
[1750898169701,0.1860663,107430.0,107420.0,0.50876509]
[1750898169901,0.46680347,107430.0,107420.0,0.50876509]
[1750898170104,0.59370118,107430.0,107420.0,0.50876509]
[1750898170700,0.59370118,107430.0,107420.0,0.37628509]
[1750898170899,0.59470118,107430.0,107420.0,0.37628509]
[1750898171807,0.59670118,107430.0,107420.0,0.37628509]
[1750898172098,0.95750118,107430.0,107420.0,0.01548509]
[1750898173000,0.96150118,107430.0,107420.0,0.01548509]
[1750898174903,0.1860836,107420.0,107410.0,0.13248]
[1750898175102,0.93771874,107420.0,107410.0,0.13248]
[1750898176010,1.50635874,107420.0,107410.0,0.13248]
[1750898176309,1.50835874,107420.0,107410.0,0.13248]
[1750898176806,1.51035874,107420.0,107410.0,0.13248]
[1750898179509,0.1861182,107400.0,107390.0,1.8691658]
[1750898179810,0.1861182,107400.0,107390.0,1.63509553]
[1750898180111,0.1861182,107400.0,107390.0,1.58856583]
[1750898180510,0.1861182,107400.0,107390.0,1.60441842]
[1750898180712,0.1861182,107400.0,107390.0,1.60641842]
[1750898181410,0.1861182,107400.0,107390.0,1.60741842]
[1750898181614,0.1861182,107400.0,107390.0,1.88815559]
[1750898185612,0.1861182,107400.0,107390.0,1.75563559]
[1750898185814,0.1861182,107400.0,107390.0,2.45687559]
[1750898187416,0.2326421,107410.0,107400.0,0.1861182]
[1750898187618,0.2326421,107410.0,107400.0,0.89075537]
[1750898188614,0.29594036,107420.0,107410.0,0.1861009]
[1750898188820,0.29594036,107420.0,107410.0,0.92213807]
[1750898189117,0.29594036,107420.0,107410.0,1.62341807]
[1750898189618,0.29794036,107420.0,107410.0,1.62341807]
[1750898189816,0.29994036,107420.0,107410.0,1.62341807]
[1750898203229,0.25341686,107420.0,107410.0,1.62341807]
[1750898203426,0.20688386,107420.0,107410.0,1.62341807]
[1750898203632,0.02080026,107420.0,107410.0,1.62341807]
[1750898205427,0.01880026,107420.0,107410.0,1.62341807]
[1750898205622,0.01980026,107420.0,107410.0,1.62341807]
[1750898205927,0.01780026,107420.0,107410.0,1.62341807]
[1750898207230,0.01780026,107420.0,107410.0,1.80961007]
[1750898207724,0.2325605,107440.0,107430.0,0.186051]
[1750898207929,0.2325605,107440.0,107430.0,1.52858817]
[1750898208128,0.76244442,107450.0,107440.0,0.1860335]
[1750898208328,0.43188886,107450.0,107440.0,0.86067067]
[1750898208530,0.43188886,107450.0,107440.0,0.2507335]
[1750898208731,0.46218886,107450.0,107440.0,0.2191335]
[1750898209828,0.46818886,107450.0,107440.0,0.2201335]
[1750898210729,0.47218886,107450.0,107440.0,0.2201335]
[1750898215335,0.47218886,107450.0,107440.0,0.5809335]
[1750898215839,0.47218886,107450.0,107440.0,0.3949]
[1750898216029,0.44194442,107450.0,107440.0,0.5809324]
[1750898216225,0.44194442,107450.0,107440.0,0.59497027]
[1750898218935,0.44194442,107450.0,107440.0,0.62527027]
[1750898219346,0.38154442,107450.0,107440.0,0.84260744]
[1750898219526,0.38154442,107450.0,107440.0,0.90290744]
[1750898220136,0.30677139,107450.0,107440.0,0.90290744]
[1750898220830,0.26026429,107450.0,107440.0,0.90290744]
[1750898221139,0.21375849,107450.0,107440.0,0.90290744]
[1750898221938,0.02772919,107450.0,107440.0,0.90290744]
[1750898222236,0.011,107450.0,107440.0,0.90290744]
[1750898222436,0.1970154,107450.0,107440.0,0.90290744]
[1750898224738,0.011,107450.0,107440.0,0.90290744]
[1750898231650,0.011,107450.0,107440.0,1.47494461]
[1750898232245,0.011,107450.0,107440.0,1.19420744]
[1750898236365,0.011,107450.0,107440.0,1.33433041]
[1750898243068,0.1970137,107450.0,107440.0,1.33433041]
[1750898243367,0.011,107450.0,107440.0,2.00819041]
[1750898243667,0.0426,107450.0,107440.0,2.00819041]
[1750898243966,0.0426,107450.0,107440.0,2.03989041]
[1750898243967,0.0731383,107450.0,107440.0,2.03989041]
[1750898244270,0.0731383,107450.0,107440.0,1.89963212]
[1750898244970,0.0415383,107450.0,107440.0,1.89963212]
[1750898245870,0.011,107450.0,107440.0,1.89963212]
[1750898247570,0.011,107450.0,107440.0,1.19547212]
[1750898247869,0.011,107450.0,107440.0,1.89983212]
[1750898248061,0.011,107450.0,107440.0,1.91497143]
[1750898248770,0.011,107450.0,107440.0,1.62367143]
[1750898250467,0.04156464,107450.0,107440.0,1.62367143]
[1750898253275,0.04156464,107450.0,107440.0,0.91931143]
[1750898253474,0.22757854,107450.0,107440.0,0.88761143]
[1750898253669,0.26067854,107450.0,107440.0,1.56365143]
[1750898253870,0.2933139,107450.0,107440.0,1.56369143]
[1750898258380,0.1073,107450.0,107440.0,1.56369143]
[1750898258877,0.1073,107450.0,107440.0,1.59399143]
[1750898259376,0.2933138,107450.0,107440.0,1.59399143]
[1750898260276,0.1073,107450.0,107440.0,1.59399143]
[1750898261679,0.2933138,107450.0,107440.0,1.59399143]
[1750898263778,0.1073,107450.0,107440.0,1.59399143]
[1750898264075,0.1073,107450.0,107440.0,1.62489143]
[1750898264578,0.0754,107450.0,107440.0,1.62489143]
[1750898264781,0.0754,107450.0,107440.0,1.65559143]
[1750898265078,0.0441,107450.0,107440.0,1.65559143]
[1750898266378,0.2301138,107450.0,107440.0,1.37498958]
[1750898266579,0.2301138,107450.0,107440.0,1.65559143]
[1750898266882,0.0441,107450.0,107440.0,1.65559143]
[1750898267078,0.2301138,107450.0,107440.0,1.65559143]
[1750898268586,0.1970138,107450.0,107440.0,1.59343143]
[1750898268783,0.2886138,107450.0,107440.0,1.59343143]
[1750898269185,0.2886138,107450.0,107440.0,1.31282958]
[1750898269379,0.2886138,107450.0,107440.0,1.59343143]
[1750898270384,0.2886138,107450.0,107440.0,1.73377524]
[1750898272586,0.2886138,107450.0,107440.0,1.52330241]
[1750898273080,0.49908663,107450.0,107440.0,1.52330241]
[1750898273285,0.49908663,107450.0,107440.0,1.73377524]
[1750898273486,0.2886138,107450.0,107440.0,1.73377524]
[1750898273786,0.2886138,107450.0,107440.0,1.76607524]
[1750898274988,0.2886138,107450.0,107440.0,1.34512958]
[1750898275289,0.2586138,107450.0,107440.0,1.76607524]
[1750898275478,0.2586138,107450.0,107440.0,1.79697524]
[1750898277587,0.2586138,107450.0,107440.0,1.37602958]
[1750898277792,0.2586138,107450.0,107440.0,1.79697524]
[1750898278193,0.2586138,107450.0,107440.0,1.55560241]
[1750898278490,0.2914138,107450.0,107440.0,1.55560241]
[1750898279892,0.50188663,107450.0,107440.0,1.55560241]
[1750898280785,0.50188663,107450.0,107440.0,1.54200454]
[1750898281089,0.53244402,107450.0,107440.0,1.13493171]
[1750898282604,0.53244402,107450.0,107440.0,1.14807621]
[1750898283009,0.53244402,107450.0,107440.0,1.35854904]
[1750898283193,0.53244402,107450.0,107440.0,1.13493171]
[1750898283393,0.53244402,107450.0,107440.0,1.34540454]
[1750898284104,0.53244402,107450.0,107440.0,0.56297171]
[1750898284304,0.89324402,107450.0,107440.0,0.01613931]
[1750898284794,0.89324402,107450.0,107440.0,0.20217041]
[1750898285606,0.89324402,107450.0,107440.0,0.01613931]
[1750898286808,0.89324402,107450.0,107440.0,0.20217041]
[1750898287006,0.68277119,107450.0,107440.0,0.20217041]
[1750898287310,0.89324402,107450.0,107440.0,0.20217041]
[1750898287503,0.89324402,107450.0,107440.0,0.41264324]
[1750898288107,0.53244402,107450.0,107440.0,0.41264324]
[1750898288306,0.32197119,107450.0,107440.0,0.20217041]
[1750898288812,0.32197119,107450.0,107440.0,0.1870311]
[1750898289103,0.6026533,107450.0,107440.0,0.1870311]
[1750898290610,0.32197119,107450.0,107440.0,0.1870311]
[1750898294201,0.28917119,107450.0,107440.0,0.46771321]
[1750898294500,0.22757119,107450.0,107440.0,0.56301321]
[1750898294701,0.22757119,107450.0,107440.0,0.92381321]
[1750898296206,0.1970138,107450.0,107440.0,0.92381321]
[1750898296803,0.011,107450.0,107440.0,0.92381321]
[1750898297308,0.1970137,107450.0,107440.0,0.92381321]
[1750898298508,0.22743643,107450.0,107440.0,0.92381321]
[1750898299211,0.22743643,107450.0,107440.0,0.6431311]
[1750898299510,0.1970137,107450.0,107440.0,0.92381321]
[1750898304122,0.011,107450.0,107440.0,0.92381321]
[1750898308214,0.011,107450.0,107440.0,1.06398524]
[1750898309028,0.1970137,107450.0,107440.0,1.06398524]
[1750898309624,0.011,107450.0,107440.0,1.06398524]
[1750898313229,0.011,107450.0,107440.0,1.27441231]
[1750898313423,0.2789881,107470.0,107460.0,0.1859964]
[1750898313624,0.3094095,107470.0,107460.0,1.53861054]
[1750898313927,0.3094095,107470.0,107460.0,1.63211054]
[1750898314829,0.3164095,107470.0,107460.0,1.63211054]
[1750898315128,0.3464095,107470.0,107460.0,1.63211054]
[1750898315726,0.55683657,107470.0,107460.0,0.3608]
[1750898315930,0.1859963,107460.0,107450.0,0.91206821]
[1750898316121,0.2464177,107460.0,107450.0,1.64858821]
[1750898316323,0.45684477,107460.0,107450.0,1.64858821]
[1750898316832,0.48704477,107460.0,107450.0,1.64858821]
[1750898317332,0.2164177,107460.0,107450.0,1.64858821]
[1750898317533,0.2164177,107460.0,107450.0,1.68158821]
[1750898317735,0.2174177,107460.0,107450.0,1.68158821]
[1750898318034,0.2194177,107460.0,107450.0,1.47116114]
[1750898318236,0.2516177,107460.0,107450.0,1.7517445]
[1750898318529,0.2516177,107460.0,107450.0,1.0009219]
[1750898318835,0.2516177,107460.0,107450.0,1.6587798]
[1750898320939,0.2828177,107460.0,107450.0,1.6587798]
[1750898321939,0.56340106,107460.0,107450.0,1.26626794]
[1750898322139,0.59640106,107460.0,107450.0,0.14889424]
[1750898322643,0.59640106,107460.0,107450.0,0.01533424]
[1750898325548,0.59640106,107460.0,107450.0,0.20134794]
[1750898327346,0.59640106,107460.0,107450.0,0.01533424]
[1750898339756,0.3158177,107460.0,107450.0,0.01533424]
[1750898339957,0.59640106,107460.0,107450.0,0.01533424]
[1750898340258,0.7367936,107460.0,107450.0,0.01533424]
[1750898341747,1.0975936,107460.0,107450.0,0.01533424]
[1750898346359,1.0975936,107460.0,107440.0,0.89831315]
[1750898346360,0.1860137,107450.0,107440.0,0.89831315]
[1750898346563,0.42692305,107450.0,107440.0,0.89831315]
[1750898347359,0.42892305,107450.0,107440.0,0.89831315]
[1750898347959,0.43092305,107450.0,107440.0,0.89831315]
[1750898348962,0.43092305,107450.0,107440.0,0.85180555]
[1750898349360,0.46272305,107450.0,107440.0,0.85180555]
[1750898350457,0.2522351,107450.0,107440.0,0.85180555]
[1750898350962,0.2204351,107450.0,107440.0,0.85180555]
[1750898351166,0.43092305,107450.0,107440.0,0.85180555]
[1750898353561,0.43092305,107450.0,107440.0,0.49100555]
[1750898353765,0.43092305,107450.0,107440.0,0.85180555]
[1750898356370,0.2204351,107450.0,107440.0,0.85180555]
[1750898356558,0.43092305,107450.0,107440.0,1.0622935]
[1750898356758,0.43092305,107450.0,107440.0,0.85180555]
[1750898356964,0.43092305,107450.0,107440.0,0.6413176]
[1750898357272,0.43092305,107450.0,107440.0,0.49101895]
[1750898358168,0.43092305,107450.0,107440.0,0.280531]
[1750898358369,0.43092305,107450.0,107440.0,0.49101895]
[1750898358768,0.43092305,107450.0,107440.0,0.30498795]
[1750898359169,0.43092305,107450.0,107440.0,0.49101895]